fUST/lending_fUST_20250327
["ID","MTS","AMOUNT","RATE_DAILY","PERIOD"]
[356720977,1743027035583,-800.0,0.00034083,2]
[356720978,1743027035593,-800.0,0.00034108,2]
[356720979,1743027035603,-800.0,0.00034122,2]
[356720980,1743027035613,-800.0,0.00034132,2]
[356720981,1743027035623,-800.0,0.00034134,2]
[356720982,1743027035633,-800.0,0.00034138,2]
[356720983,1743027035644,-800.0,0.00034148,2]
[356720984,1743027035653,-800.0,0.00034148,2]
[356720985,1743027035663,-800.0,0.00034166,2]
[356720986,1743027035673,-800.0,0.00034167,2]
[356720987,1743027035684,-800.0,0.0003418,2]
[356720988,1743027035695,-800.0,0.00034186,2]
[356720989,1743027035705,-800.0,0.0003419,2]
[356720990,1743027035715,-800.0,0.00034193,2]
[356720991,1743027035726,-800.0,0.00034204,2]
[356720992,1743027035735,-800.0,0.00034205,2]
[356720993,1743027035745,-800.0,0.00034212,2]
[356720994,1743027035755,-800.0,0.0003423,2]
[356720995,1743027035766,-151.0,0.00034233,14]
[356720996,1743027035777,-2986.642085,0.00034233,2]
[356720997,1743027035788,-2986.642085,0.00034233,2]
[356720998,1743027035797,-800.0,0.00034254,2]
[356720999,1743027035810,-800.0,0.0003427,2]
[356721000,1743027035819,-800.0,0.00034272,2]
[356721001,1743027035830,-800.0,0.00034275,2]
[356721002,1743027035840,-800.0,0.0003428,2]
[356721003,1743027035851,-800.0,0.00034281,2]
[356721004,1743027035861,-800.0,0.00034291,2]
[356721005,1743027035871,-1323.98082,0.000343,15]
[356721006,1743027035881,-800.0,0.00034306,2]
[356721007,1743027035892,-800.0,0.00034322,2]
[356721008,1743027035901,-800.0,0.00034327,2]
[356721009,1743027035911,-832.11509951,0.00034331,2]
[356721010,1743027035921,-800.0,0.00034334,2]
[356721011,1743027035930,-800.0,0.00034342,2]
[356721012,1743027035940,-800.0,0.00034359,2]
[356721013,1743027035950,-632.893142,0.00034383,14]
[356721014,1743027035960,-632.893142,0.00034383,14]
[356721015,1743027035970,-160.303491,0.00034383,14]
[356721016,1743027035980,-160.303491,0.00034383,14]
[356721017,1743027035990,-308.678542,0.00034383,14]
[356721018,1743027035999,-308.678542,0.00034383,14]
[356721019,1743027036009,-151.0,0.00034395,14]
[356721020,1743027036019,-156.878,0.0003445,39]
[356721021,1743027036029,-151.0,0.00034452,14]
[356721022,1743027036039,-2986.642085,0.00034452,2]
[356721023,1743027036049,-2986.642085,0.00034452,2]
[356721024,1743027036059,-1000.0,0.00034452,5]
[356721025,1743027036069,-1000.0,0.00034452,5]
[356721026,1743027036079,-1001.33702589,0.00034452,5]
[356721027,1743027036090,-1023.82739859,0.00034452,5]
[356721028,1743027036100,-1000.0,0.00034452,5]
[356721029,1743027036110,-1000.0,0.00034452,5]
[356721030,1743027036120,-1000.0,0.00034452,5]
[356721031,1743027036130,-502.00282858,0.00034452,5]
[356721032,1743027036139,-21163.02404354,0.000345,30]
[356721033,1743027036150,-2000.0,0.000345,15]
[356721034,1743027036160,-2000.0,0.000345,15]
[356721035,1743027036169,-210.802263,0.000345,14]
[356721036,1743027036179,-632.893142,0.000345,14]
[356721037,1743027036189,-632.893142,0.000345,14]
[356721038,1743027036198,-151.0,0.000345,14]
[356721039,1743027036208,-2986.642085,0.000345,2]
[356721040,1743027036217,-2986.64209038,0.000345,2]
[356721041,1743027036227,-160.303491,0.000345,14]
[356721042,1743027036237,-160.303488,0.000345,14]
[356721043,1743027036246,-308.678542,0.000345,14]
[356721044,1743027036256,-308.678551,0.000345,14]
[356721045,1743027036265,-155729.64711542,0.0003465,2]
[356721046,1743027036275,-632.893142,0.0003465,14]
[356721047,1743027036284,-632.893142,0.0003465,14]
[356721048,1743027036293,-200.0,0.00034673,5]
[356721049,1743027036302,-603.3403,0.000347,2]
[356721050,1743027036311,-500.0,0.00034751,13]
[356721051,1743027036321,-500.0,0.00034751,13]
[356721052,1743027036330,-3802.43725814,0.0003499,30]
[356721053,1743027036341,-165911.45475875,0.00035,2]
[356721054,1743027036350,-10000.0,0.00035,30]
[356721055,1743027036359,-471.54538709,0.00035,10]
[356721056,1743027036368,-8213.26620498,0.00035,2]
[356721057,1743027036378,-270.755,0.00035,5]
[356721058,1743027036388,-2000.0,0.00035,15]
[356721059,1743027036397,-632.893142,0.00035,14]
[356721060,1743027036406,-632.893148,0.00035,14]
[356721061,1743027036415,-1500.0,0.00035119,5]
[356721062,1743027036424,-200.0,0.000352,120]
[356721063,1743027036434,-200.0,0.000352,120]
[356721064,1743027036443,-1000.0,0.00035349,5]
[356721065,1743027036452,-500.0,0.00035349,5]
[356721066,1743027036461,-1000.0,0.00035349,5]
[356721067,1743027036470,-1000.0,0.00035349,5]
[356721068,1743027036479,-501.40431384,0.00035396,5]
[356721070,1743027036489,-1143.61765796,0.00035512,2]
[356721071,1743027036499,-498.5,0.0003557,2]
[356721072,1743027036510,-150.0,0.00035612,2]
[356721073,1743027036519,-195.66410865,0.00035616,2]
[356721074,1743027036528,-500.0,0.0003589,2]
[356721075,1743027036537,-298.381017,0.00035903,2]
[356721076,1743027036546,-242.27306455,0.00036,10]
[356721077,1743027036556,-178.0,0.00036,2]
[356721078,1743027036567,-2000.0,0.00036215,5]
[356721079,1743027036576,-400.0,0.0003677,2]
[356721080,1743027036586,-2500.0,0.00037311,5]
[356721081,1743027036595,-2000.0,0.000375,15]
[356721082,1743027036604,-150.0,0.000375,112]
[356721083,1743027036613,-1012.54918579,0.00037753,120]
[356721084,1743027036623,-2000.0,0.000379,15]
[356721085,1743027036633,-3000.0,0.00038407,5]
[356721086,1743027036642,-2000.0,0.000385,15]
[356721087,1743027036651,-2000.0,0.000385,15]
[356721088,1743027036661,-152.2,0.000385,120]
[356721089,1743027036670,-545.16,0.000387,7]
[356721090,1743027036679,-2000.0,0.000389,15]
[356721091,1743027036689,-151.0,0.000389,19]
[356721092,1743027036699,-28749.88924721,0.00039,120]
[356721093,1743027036708,-1000.0,0.00039,30]
[356721094,1743027036717,-1143.61765796,0.00039059,2]
[356721095,1743027036727,-190.4469745,0.00039452,30]
[356721096,1743027036736,-1643.26251221,0.00039503,5]
[356721097,1743027036746,-2000.0,0.000398,15]
[356721098,1743027036755,-3000.0,0.0003985,120]
[356721099,1743027036764,-187.15497305,0.0003989,2]
[356721100,1743027036773,-2000.0,0.000399,15]
[356721101,1743027036783,-2000.0,0.000399,15]
[356721102,1743027036792,-2000.0,0.000399,15]
[356721103,1743027036804,-2000.0,0.0004,15]
[356721104,1743027036814,-2000.0,0.0004,15]
[356721105,1743027036823,-46610.10438478,0.0004,12]
[356721107,1743027036832,-389.73665479,0.0004,10]
[356721108,1743027036843,-160.0,0.00040372,3]
[356721109,1743027036852,-1500.0,0.00040471,5]
[356721110,1743027036861,-1500.0,0.00040471,5]
[356721111,1743027036872,-500.0,0.00040471,5]
[356721112,1743027036882,-1500.0,0.00040471,5]
[356721113,1743027036891,-1500.0,0.00040471,5]
[356721114,1743027036901,-1500.0,0.00040471,5]
[356721115,1743027036911,-1500.0,0.00040471,5]
[356721116,1743027036920,-2000.0,0.000405,15]
[356721117,1743027036930,-600.0,0.00040688,2]
[356721118,1743027036940,-2000.0,0.00041,15]
[356721119,1743027036950,-1000.0,0.00041,30]
[356721120,1743027036959,-10000.0,0.00041,120]
[356721121,1743027036968,-150.32,0.00041096,2]
[356721122,1743027036977,-500.0,0.00041096,2]
[356721123,1743027036986,-500.0,0.00041096,2]
[356721124,1743027036996,-150.80831317,0.00041096,2]
[356721125,1743027037006,-500.0,0.00041096,2]
[356721126,1743027037015,-600.0,0.00041112,2]
[356721127,1743027037024,-500.0,0.00041211,2]
[356721128,1743027037034,-150.32,0.00041233,2]
[356721129,1743027037044,-500.0,0.00041233,2]
[356721130,1743027037053,-500.0,0.00041233,2]
[356721131,1743027037063,-519.30770819,0.00041233,2]
[356721132,1743027037073,-276.91966657,0.0004137,2]
[356721133,1743027037082,-500.0,0.0004137,2]
[356721134,1743027037093,-500.0,0.0004137,2]
[356721135,1743027037102,-500.0,0.00041507,2]
[356721136,1743027037112,-500.0,0.00041507,2]
[356721137,1743027037122,-1015.2825701,0.00041535,2]
[356721138,1743027037131,-500.0,0.00041644,2]
[356721139,1743027037141,-552.3174319,0.00041781,2]
[356721140,1743027037151,-84198.3873176,0.00041786,30]
[356721141,1743027037160,-80260.85837733,0.00042,120]
[356721143,1743027037171,-522.0,0.00042,120]
[356721144,1743027037180,-400.0,0.00042,120]
[356721145,1743027037190,-270.755,0.00042041,14]
[356721147,1743027037199,-150.0,0.00042308,14]
[356721148,1743027037208,-150.0,0.00042308,14]
[356721149,1743027037218,-1518.274512,0.0004234,15]
[356721150,1743027037227,-1000.0,0.0004236,15]
[356721151,1743027037236,-1000.0,0.0004238,15]
[356721152,1743027037245,-1082.334676,0.0004238,15]
[356721153,1743027037254,-1000.0,0.000424,15]
[356721154,1743027037263,-1000.0,0.000424,15]
[356721155,1743027037274,-37910.08976045,0.0004244,30]
[356721156,1743027037284,-2000.0,0.000425,120]
[356721157,1743027037293,-5346.26,0.000425,120]
[356721158,1743027037302,-151.764467,0.00042582,60]
[356721159,1743027037312,-172.378103,0.00042582,60]
[356721160,1743027037322,-1143.61765796,0.00042606,28]
[356721161,1743027037331,-10000.0,0.000427,10]
[356721162,1743027037342,-529.78187027,0.00042855,60]
[356721163,1743027037351,-400.0,0.00042892,10]
[356721164,1743027037360,-1082.71285419,0.00042899,120]
[356721165,1743027037370,-30000.0,0.000429,5]
[356721166,1743027037380,-1082.71285419,0.00042999,120]
[356721167,1743027037390,-242.88692597,0.00042999,25]
[356721168,1743027037399,-104036.63376976,0.00043,7]
[356721169,1743027037416,-16334.32917972,0.00043,7]
[356721170,1743027037427,-480.13206192,0.00043,7]
[356721171,1743027037439,-435.3,0.00043,7]
[356721172,1743027037450,-6604.21687894,0.00043,7]
[356721192,1743027038652,-3838.62438553,0.00026624,4]
[356721193,1743027038661,-3838.62438553,0.00027486,4]
[356721194,1743027038671,-3838.62438553,0.00028348,5]
[356721195,1743027038680,-2987.58303545,0.0002921,5]
[356721329,1743027043947,-216.5618136,0.00024972,2]
[356721331,1743027043958,-500.0,0.00024972,2]
[356721333,1743027043967,-196.75335659,0.0002921,5]
[356721344,1743027046841,-654.28799349,0.0002921,5]
[356721345,1743027046852,-410.29236129,0.00030072,5]
[356721346,1743027046863,-1975.44129159,0.00030072,5]
[356721350,1743027297722,-861.94890858,0.0004,120]
[356721351,1743027297762,-374.72503466,0.00040266,120]
[356721352,1743027297785,-503.23617227,0.00043,120]
[356721353,1743027297808,-204.75164726,0.00043,120]
[356721354,1743027297888,-500.0,0.00043,120]
[356721355,1743027297924,-397.18949148,0.00043,120]
[356721356,1743027297946,-506.78,0.00043,120]
[356721357,1743027297969,-178.74336271,0.00043099,120]
[356721358,1743027298000,-903.96949148,0.00043099,120]
[356721359,1743027298022,-178.74336271,0.00043199,120]
[356721360,1743027298053,-400.0,0.00043199,120]
[356721361,1743027298085,-503.96949148,0.00043199,120]
[356721362,1743027298108,-200.0,0.000432,120]
[356721363,1743027298133,-200.0,0.000432,120]
[356721364,1743027298155,-178.74336271,0.00043299,120]
[356721365,1743027298185,-903.96949148,0.00043299,120]
[356721366,1743027298208,-178.74336271,0.00043399,120]
[356721367,1743027298245,-903.96949148,0.00043399,120]
[356721368,1743027298268,-178.74336271,0.00043499,120]
[356721369,1743027298299,-903.96949148,0.00043499,120]
[356721370,1743027298322,-178.74336271,0.00043599,120]
[356721371,1743027298352,-903.96949148,0.00043599,120]
[356721372,1743027298374,-97.03050852,0.00043699,120]
[356721373,1743027298448,-985.68234567,0.00043699,120]
[356721374,1743027298471,-2.99235936,0.00043799,120]
[356721375,1743027298501,-1079.72049483,0.00043799,120]
[356721376,1743027298523,-2.99235936,0.000438,120]
[356721377,1743027329519,150.0,0.000429,120]
[356721378,1743027676560,932.71285419,0.0004309,120]
[356721379,1743027676583,150.28714581,0.0004309,120]
[356721381,1743027959392,151.0,0.00043099,120]
[356721385,1743028035123,-1105.13930296,0.00028082,3]
[356721386,1743028040092,-657.7974594,0.00028082,3]
[356721387,1743028045311,-84.04633134,0.00028082,3]
[356721388,1743028045331,-388.71081817,0.000288,2]
[356721389,1743028052082,-111.28918183,0.000288,2]
[356721390,1743028052104,-300.0,0.00028899,2]
[356721391,1743028052125,-1861.22860227,0.000289,5]
[356721392,1743028157112,-980.0,0.000125,2]
[356721393,1743028158096,-1878.82934231,0.000125,2]
[356721394,1743028158118,-161.77203768,0.0002,7]
[356721395,1743028176141,500.0,0.00043099,120]
[356721396,1743028219995,281.4,0.0004309,120]
[356721431,1743028232013,-74.12696232,0.0002,7]
[356721432,1743028232023,-432.47098047,0.000285,7]
[356721433,1743028232034,-249.84,0.000285,7]
[356721449,1743028237588,0.02570838,0.00043,120]
[356721451,1743028237612,499.57429162,0.00043,120]
[356721461,1743028237709,-134.29340297,0.000285,7]
[356721462,1743028237720,-300.0,0.00028899,2]
[356721464,1743028237730,-2952.35400522,0.000289,5]
[356721466,1743028237740,-5000.0,0.000289,2]
[356721468,1743028237750,-482.30680631,0.00029,7]
[356721470,1743028237760,-482.30680631,0.00029,7]
[356721472,1743028237769,-2952.35400495,0.00029624,5]
[356721473,1743028237779,-2952.35400495,0.00030348,5]
[356721475,1743028237788,-2952.35400495,0.00031072,5]
[356721477,1743028237798,-300.0,0.00031182,2]
[356721478,1743028237807,-20200.9811253,0.00031245,2]
[356721479,1743028237817,-693.05991361,0.00031696,2]
[356721481,1743028237826,-2952.35400495,0.00031797,6]
[356721482,1743028237836,-2952.35400495,0.00032521,6]
[356721484,1743028237846,-2952.35400495,0.00033245,6]
[356721485,1743028237855,-150.0,0.000335,2]
[356721486,1743028237864,-2952.35400495,0.00033969,6]
[356721487,1743028237874,-693.05991354,0.00034268,2]
[356721488,1743028237883,-2952.35400495,0.00034693,7]
[356721489,1743028237894,-500.0,0.00034751,13]
[356721490,1743028237906,-500.0,0.00034751,13]
[356721491,1743028237915,-2952.35400495,0.00035417,7]
[356721492,1743028237925,-603.0,0.000355,2]
[356721493,1743028237934,-500.0,0.0003589,2]
[356721494,1743028237944,-2952.35400495,0.00036141,7]
[356721495,1743028237955,-299.78002774,0.000362,98]
[356721496,1743028237965,-299.78002773,0.000362,98]
[356721497,1743028237975,-693.05991354,0.0003684,2]
[356721498,1743028237985,-408.93058753,0.00036865,15]
[356721499,1743028237995,-2952.35400495,0.00036866,7]
[356721500,1743028238005,-2952.35400495,0.0003759,7]
[356721501,1743028238015,-2952.35400495,0.00038314,8]
[356721502,1743028238024,-327.09,0.00039,7]
[356721503,1743028238034,-2952.35400495,0.00039038,8]
[356721504,1743028238044,-299.78002773,0.00039249,116]
[356721505,1743028238053,-693.05991354,0.00039412,2]
[356721506,1743028238063,-2952.35400495,0.00039762,8]
[356721507,1743028238072,-2588.6361598,0.00040486,8]
[356721508,1743028238085,-363.71784515,0.00040486,8]
[356721509,1743028238095,-288.69884912,0.00040527,4]
[356721516,1743028240030,-479.66942078,0.00040527,4]
[356721517,1743028240040,-186.53187125,0.00041111,2]
[356721518,1743028240051,-2952.35400495,0.0004121,9]
[356721519,1743028240061,-500.0,0.00041211,2]
[356721520,1743028240071,-2952.35400495,0.00041934,9]
[356721521,1743028240080,-693.05991354,0.00041983,28]
[356721522,1743028240090,-403.09058952,0.0004227,10]
[356721523,1743028240100,-500.0,0.0004227,7]
[356721524,1743028240110,-2468.71828731,0.0004263,10]
[356721536,1743028242914,-3106.32140761,0.0004263,10]
[356721537,1743028242927,-737.16808519,0.0004263,10]
[356721552,1743028246229,-29649.72519936,0.0004263,10]
[356721557,1743028376278,1612.38301939,0.0004254,120]
[356721559,1743029228172,-150.0,0.000344,2]
[356721560,1743029228197,-15.54224137,0.0003589,2]
[356721561,1743029251098,-240.24683501,0.00021423,2]
[356721562,1743029251120,-350.9249168,0.00022112,2]
[356721563,1743029251142,-477.07862656,0.0003089,7]
[356721564,1743029252082,-505.3612137,0.0003089,7]
[356721565,1743029252103,-484.45775863,0.0003589,2]
[356721566,1743029252129,-147.05090472,0.000379,8]
[356721567,1743029353114,-153.20863883,0.00010959,2]
[356721630,1743029437992,-12.38232917,0.00010959,2]
[356721631,1743029438002,-150.0,0.00033115,2]
[356721632,1743029438012,-150.0,0.00033115,2]
[356721633,1743029438022,-270.511,0.00033115,2]
[356721634,1743029438032,-150.0,0.000345,2]
[356721635,1743029438041,-150.0,0.00036115,2]
[356721636,1743029438051,-150.0,0.00036115,2]
[356721637,1743029438061,-300.0,0.0003812,2]
[356721638,1743029438071,-1937.45858095,0.00038121,120]
[356721655,1743029446100,-1846.9830937,0.00028219,3]
[356721656,1743029446110,-10500.44606519,0.00038121,120]
[356721657,1743029446121,-199.85335182,0.000388,113]
[356721658,1743029446131,-1101.06226003,0.000389,8]
[356721659,1743029446141,-1101.06225985,0.00039279,8]
[356721660,1743029446151,-150.0,0.000395,7]
[356721661,1743029446161,-1101.06225985,0.00039659,8]
[356721662,1743029446171,-1101.06225985,0.00040038,8]
[356721663,1743029446180,-1101.06225985,0.00040417,8]
[356721664,1743029446190,-576.2762024,0.00040527,4]
[356721665,1743029446200,-1101.06225985,0.00040797,8]
[356721666,1743029446210,-156.879,0.00040797,59]
[356721667,1743029446220,-1101.06225985,0.00041176,9]
[356721668,1743029446232,-500.0,0.00041211,2]
[356721669,1743029446242,-1101.06225985,0.00041555,9]
[356721671,1743029446253,-527.5921738,0.000418,120]
[356721673,1743029446264,-1101.06225985,0.00041934,9]
[356721675,1743029446275,-19840.4973921,0.0004197,10]
[356721678,1743029446288,-33259.0926079,0.0004197,10]
[356721679,1743029446297,-500.0,0.00041973,10]
[356721680,1743029446308,-500.0,0.00041973,10]
[356721681,1743029446318,-500.0,0.00041973,10]
[356721682,1743029446328,-33414.65,0.0004198,10]
[356721683,1743029446339,-63719.51,0.0004198,10]
[356721684,1743029446349,-389.96352136,0.00041989,31]
[356721685,1743029446359,-5306.77878312,0.0004199,3]
[356721686,1743029446371,-11650.0,0.0004199,3]
[356721687,1743029446385,-34566.32394648,0.0004199,3]
[356721688,1743029446397,-453.94090038,0.0004199,3]
[356721695,1743030320078,500.0,0.0003,30]
[356721696,1743030334133,-271.8,0.00021229,2]
[356721697,1743030441090,-189.29,0.00021229,2]
[356721698,1743030441112,-298.381017,0.0002722,2]
[356721699,1743030441134,-448.63,0.00028033,2]
[356721700,1743030441156,-300.0,0.00028999,2]
[356721701,1743030441177,-3467.85999045,0.00029,7]
[356721702,1743030444104,-582.76109681,0.00029,7]
[356721703,1743030563191,-158.92845362,0.00010959,2]
[356721716,1743030632246,-6.66251438,0.00010959,2]
[356721717,1743030632256,-1351.50660284,0.000289,2]
[356721718,1743030632266,-300.0,0.00028999,2]
[356721719,1743030632277,-3549.25604448,0.00029,7]
[356721720,1743030632289,-15616.81888619,0.00029,7]
[356721721,1743030632299,-23216.69601793,0.00029,7]
[356721722,1743030632308,-834.83451184,0.00029,7]
[356721723,1743030632318,-2500.0,0.00029041,3]
[356721724,1743030632327,-2500.0,0.00029099,3]
[356721725,1743030632338,-1029.45335071,0.000299,5]
[356721726,1743030632348,-1029.45335071,0.0003059,5]
[356721727,1743030632358,-1029.45335071,0.00031279,6]
[356721728,1743030632368,-1351.50660284,0.00031871,2]
[356721729,1743030632377,-1029.45335071,0.00031969,6]
[356721730,1743030632387,-1029.45335071,0.00032659,6]
[356721731,1743030632396,-24506.22537102,0.00033,2]
[356721732,1743030632409,-502.50984775,0.00033,2]
[356721733,1743030632418,-153.613,0.00033115,2]
[356721734,1743030632428,-249.539,0.00033115,2]
[356721735,1743030632437,-254.924,0.00033115,2]
[356721736,1743030632446,-164.75880032,0.00033115,2]
[356721779,1743030638236,-345.57294201,0.00032999,7]
[356721780,1743030638246,-22.24119968,0.00033115,2]
[356721781,1743030638255,-280.66,0.00033115,2]
[356721782,1743030638264,-320.29420055,0.000332,5]
[356721783,1743030638274,-150.0,0.000347,2]
[356721784,1743030638283,-500.0,0.000347,5]
[356721785,1743030638293,-500.0,0.000347,5]
[356721786,1743030638303,-1351.50660284,0.00034843,2]
[356721787,1743030638312,-500.0,0.0003589,2]
[356721788,1743030638322,-834.83451184,0.00036107,7]
[356721789,1743030638331,-156.879,0.00036141,44]
[356721790,1743030638340,-500.0,0.000365,120]
[356721791,1743030638349,-1351.50660284,0.00037814,2]
[356721792,1743030638359,-500.0,0.00038,120]
[356721793,1743030638369,-500.0,0.00039,120]
[356721794,1743030638378,-500.0,0.00039,120]
[356721795,1743030638387,-171.39,0.000397,7]
[356721796,1743030638397,-500.0,0.0004,120]
[356721797,1743030638406,-1000.0,0.00040179,5]
[356721798,1743030638415,-218.22059987,0.00040179,5]
[356721799,1743030638427,-781.77940013,0.00040179,5]
[356721800,1743030638436,-500.0,0.00040357,5]
[356721801,1743030638445,-432.2071518,0.00040527,4]
[356721802,1743030638455,-1351.50660284,0.00040786,28]
[356721803,1743030638464,-500.0,0.00041095,30]
[356721804,1743030638474,-857.9,0.00041095,30]
[356721805,1743030638483,-500.0,0.00041095,30]
[356721806,1743030638492,-528.64942439,0.00041095,30]
[356721807,1743030638511,-500.0,0.00041095,30]
[356721808,1743030638523,-500.0,0.00041095,30]
[356721809,1743030638533,-532.04,0.00041095,30]
[356721810,1743030638543,-500.0,0.00041095,30]
[356721811,1743030638552,-320.46980994,0.00041095,30]
[356721812,1743030638562,-500.0,0.00041095,30]
[356721813,1743030638572,-368.1476109,0.00041095,30]
[356722408,1743030646442,-504.206,0.00032516,2]
[356722409,1743030646453,-400.0,0.00035516,2]
[356722411,1743030646463,-400.0,0.00038516,2]
[356722413,1743030646473,-131.8523891,0.00041095,30]
[356722414,1743030646484,-500.0,0.00041095,30]
[356722416,1743030646493,-500.0,0.00041095,30]
[356722418,1743030646503,-500.0,0.00041095,30]
[356722420,1743030646513,-368.63816768,0.00041133,10]
[356722421,1743030646523,-500.0,0.00041211,2]
[356722423,1743030646534,-500.0,0.00041369,30]
[356722425,1743030646544,-512.5692942,0.00041369,30]
[356722427,1743030646557,-345.3307058,0.00041369,30]
[356722429,1743030646566,-127.62862795,0.00041369,30]
[356722431,1743030646579,-372.37137205,0.00041369,30]
[356722432,1743030646588,-76.25862795,0.00041369,30]
[356722434,1743030646601,-423.74137205,0.00041369,30]
[356722436,1743030646610,-9.52400567,0.00041369,30]
[356722439,1743030646627,-495.70194856,0.00041369,30]
[356722440,1743030646637,-532.04,0.00041369,30]
[356722442,1743030646647,-500.0,0.00041369,30]
[356722444,1743030646657,-500.0,0.00041369,30]
[356722446,1743030646667,-593.34,0.00041369,30]
[356722448,1743030646677,-500.0,0.00041369,30]
[356722449,1743030646687,-500.0,0.00041369,30]
[356722451,1743030646697,-500.0,0.00041369,30]
[356722453,1743030646707,-500.0,0.00041643,30]
[356722455,1743030646717,-857.9,0.00041643,30]
[356722457,1743030646727,-500.0,0.00041643,30]
[356722458,1743030646736,-500.0,0.00041643,30]
[356722460,1743030646746,-532.04,0.00041643,30]
[356722462,1743030646756,-500.0,0.00041643,30]
[356722464,1743030646766,-324.58,0.00041643,30]
[356722466,1743030646776,-500.0,0.00041643,30]
[356722468,1743030646785,-500.0,0.00041643,30]
[356722470,1743030646796,-834.83451184,0.0004182,10]
[356722472,1743030646806,-40632.5389607,0.0004186,3]
[356722473,1743030646816,-28003.32,0.0004186,10]
[356722475,1743030646826,-600.0,0.00041865,2]
[356722477,1743030646837,-40632.5389607,0.0004187,3]
[356722479,1743030646846,-203162.694804,0.0004188,3]
[356722480,1743030646856,-322000.0,0.0004189,2]
[356722482,1743030646866,-1151.80881108,0.000419,2]
[356722484,1743030646876,-857.9,0.00041917,30]
[356722486,1743030646886,-500.0,0.00041917,30]
[356722488,1743030646896,-500.0,0.00041917,30]
[356722489,1743030646906,-532.04,0.00041917,30]
[356722491,1743030646917,-415.58,0.00041917,30]
[356722493,1743030646927,-500.0,0.00041917,30]
[356722495,1743030646937,-500.0,0.00041917,30]
[356722496,1743030646949,-500.0,0.00041973,7]
[356722497,1743030646961,-500.0,0.00041973,10]
[356722498,1743030646975,-500.0,0.00041973,10]
[356722499,1743030646986,-500.70840655,0.00042,2]
[356722500,1743030646996,-3905.0,0.00042,30]
[356722501,1743030647007,-48966.38097868,0.00042,2]
[356722536,1743030678735,200.0,0.0003,30]
[356722537,1743030712163,200.0,0.0003,30]
[356722542,1743031495412,3575.0,0.0003,30]
[356722545,1743031628091,-472.75714951,0.0002967,3]
[356722546,1743031633098,-1981.86074231,0.0002967,3]
[356722547,1743031633120,-500.0,0.0003,5]
[356722548,1743031633144,-169.72136412,0.0003589,2]
[356722549,1743031637077,-330.27863588,0.0003589,2]
[356722550,1743031637100,-778.03372449,0.000359,7]
[356722551,1743031642076,-300.0,0.00035999,2]
[356722552,1743031642098,-190.0,0.00036,120]
[356722553,1743031642118,-296.19382314,0.00036,120]
[356722560,1743031751149,-2858.82934231,0.000125,2]
[356722561,1743031751170,-76.97918423,0.0002,7]
[356722623,1743031838496,-84.79285345,0.0002,7]
[356722624,1743031838506,-1182.21543521,0.0002799,7]
[356722625,1743031838515,-92.99171154,0.000285,7]
[356722649,1743031843630,-659.10413561,0.000285,7]
[356722650,1743031843642,-166.09510518,0.000288,7]
[356722651,1743031843652,-1191.78689133,0.000329,6]
[356722652,1743031843661,-1191.78689108,0.00033486,6]
[356722653,1743031843671,-1191.78689108,0.00034072,6]
[356722654,1743031843681,-1191.78689108,0.00034659,7]
[356722655,1743031843690,-1083.32621562,0.00035245,7]
[356722663,1743031846602,-108.46067546,0.00035245,7]
[356722664,1743031846612,-1191.78689108,0.00035831,7]
[356722665,1743031846622,-500.0,0.000359,120]
[356722666,1743031846632,-300.0,0.00035999,2]
[356722667,1743031846641,-524.28597482,0.00036,120]
[356722668,1743031846654,-1550.19619123,0.00036,120]